bitfinex/quotes_ETHUSD_20241204
["timestamp","ask_amount","ask_price","bid_price","bid_amount"]
[1733317049124,0.24926888,3720.6,3720.3,2.68792]
[1733317049332,0.24926888,3720.5,3720.3,2.68792]
[1733317049508,0.24926888,3720.5,3719.9,0.02687681]
[1733317049509,0.24926888,3720.6,3719.6,0.52733785]
[1733317049716,0.24926888,3720.5,3720.1,2.68808]
[1733317049952,0.799,3720.7,3720.6,2.68773]
[1733317050157,0.24924173,3720.7,3720.6,2.68773]
[1733317050309,0.24924173,3720.9,3720.6,2.68773]
[1733317050514,0.24924173,3720.8,3720.6,2.62763]
[1733317050808,0.7827,3721.0,3720.4,2.68786]
[1733317051034,0.24926221,3720.9,3720.4,2.68786]
[1733317051251,0.24926221,3720.8,3720.4,2.44586]
[1733317051452,0.7827,3721.0,3720.4,2.44586]
[1733317051661,0.24929747,3720.9,3720.4,2.44586]
[1733317051819,0.24929747,3720.8,3720.4,2.44586]
[1733317052026,0.24929747,3720.7,3720.4,2.44586]
[1733317052231,0.7827,3721.0,3720.4,2.44586]
[1733317052483,0.2493864,3720.9,3720.4,2.44586]
[1733317052629,0.2493864,3720.8,3720.4,2.44586]
[1733317052830,0.2493864,3720.7,3720.4,2.44586]
[1733317053065,0.7827,3721.0,3720.4,2.44586]
[1733317053230,0.24941226,3720.9,3720.4,2.44586]
[1733317053430,0.7827,3721.0,3720.4,2.44586]
[1733317053431,0.24941226,3720.8,3720.4,2.44586]
[1733317053730,0.24941226,3720.7,3720.4,2.44586]
[1733317054041,0.7827,3721.0,3720.6,2.68773]
[1733317054237,0.24945583,3720.9,3720.6,2.68773]
[1733317054443,0.24949543,3720.8,3720.6,2.68773]
[1733317054676,0.7827,3721.0,3720.6,2.68773]
[1733317054858,0.24949498,3720.9,3720.6,2.68773]
[1733317055035,0.24949498,3720.8,3720.6,2.68773]
[1733317055234,0.7827,3721.0,3720.6,2.68773]
[1733317055461,0.24951252,3720.9,3720.3,2.68795]
[1733317055668,0.24951252,3720.8,3720.7,2.68766]
[1733317055834,0.7827,3721.0,3720.7,2.68766]
[1733317056155,0.7827,3721.0,3720.3,3.041135]
[1733317056156,0.24952341,3720.9,3720.8,2.68759]
[1733317056389,0.8157,3721.3,3720.9,2.6875]
[1733317056550,0.24959661,3721.2,3720.9,2.6875]
[1733317056761,0.24959661,3721.1,3720.9,2.6875]
[1733317056931,0.24959661,3721.0,3720.9,2.6875]
[1733317058890,0.8029,3721.6,3721.0,2.68744]
[1733317059028,2.95485278,3722.0,3720.9,0.54020628]
[1733317059029,0.24979058,3721.5,3721.2,2.6873]
[1733317059363,0.39966493,3721.5,3721.4,2.68716]
[1733317059673,0.64955966,3721.5,3721.4,2.68716]
[1733317059974,0.39966493,3721.5,3721.4,2.68716]
[1733317060876,0.64957826,3721.5,3721.4,2.68716]
[1733317061756,0.39966493,3721.5,3721.4,3.53336]
[1733317062066,0.39966493,3721.5,3721.4,4.155431]
[1733317064860,0.12573584,3722.1,3721.4,4.468271]
[1733317065175,0.12573584,3722.1,3722.0,2.68672]
[1733317065488,0.37548455,3722.1,3722.0,2.68672]
[1733317066231,0.37547527,3722.1,3722.0,2.68672]
[1733317067296,0.12573584,3722.1,3722.0,2.68672]
[1733317067468,0.37537114,3722.1,3722.0,2.68672]
[1733317068094,0.12573584,3722.1,3722.0,2.68672]
[1733317070455,0.12573584,3722.1,3722.0,3.755892]
[1733317070652,0.12573584,3722.1,3722.0,2.955392]
[1733317070868,0.12573584,3722.1,3721.6,4.35102877]
[1733317071108,0.12573584,3722.1,3721.4,3.622071]
[1733317071109,0.12573584,3722.1,3721.4,2.68711]
[1733317071256,0.8044,3722.0,3721.2,2.68727]
[1733317071455,2.53832802,3721.8,3721.3,2.68717]
[1733317071759,0.8044,3722.0,3721.3,2.68717]
[1733317071954,0.24959601,3721.9,3721.3,2.68717]
[1733317072198,0.24959601,3721.8,3721.0,0.02686853]
[1733317072510,0.8044,3722.0,3721.3,2.68723]
[1733317072670,0.24962681,3721.9,3721.3,2.68723]
[1733317073002,0.24962681,3721.8,3721.1,2.68731]
[1733317073185,0.8044,3722.0,3721.2,2.68728]
[1733317073495,0.24965443,3721.9,3721.0,0.53779081]
[1733317073699,0.24965443,3721.8,3721.0,0.53779081]
[1733317073903,0.8062,3721.7,3721.0,0.53779081]
[1733317074250,0.24964322,3721.6,3721.0,3.22523081]
[1733317074451,0.8062,3721.7,3721.0,0.53779081]
[1733317074452,0.24965986,3721.5,3721.0,0.53779081]
[1733317074674,0.8062,3721.7,3721.0,0.53779081]
[1733317074970,0.24965849,3721.6,3721.0,0.53779081]
[1733317075200,0.8062,3721.7,3721.0,0.53779081]
[1733317075421,0.24970356,3721.6,3721.0,0.53779081]
[1733317075721,0.8062,3721.7,3720.3,0.55]
[1733317075722,3.31322802,3721.4,3720.3,0.55]
[1733317075900,0.24970356,3721.3,3720.7,2.68766]
[1733317076074,3.31322802,3721.4,3720.7,2.68766]
[1733317076274,0.24971168,3721.3,3720.7,2.68766]
[1733317076511,0.24971168,3721.2,3720.5,2.68779]
[1733317076718,0.7749,3721.0,3720.5,2.68775]
[1733317076874,0.7749,3721.0,3720.3,0.55]
[1733317077076,0.7749,3721.0,3720.6,2.68766]
[1733317077704,0.7749,3721.0,3720.6,2.6877]
[1733317077975,0.7749,3721.0,3720.7,2.68766]
[1733317078176,0.2498742,3721.2,3720.7,2.68766]
[1733317078483,0.7749,3721.3,3720.9,2.68751]
[1733317078683,0.24993776,3721.2,3720.9,2.68751]
[1733317078985,0.7749,3721.3,3720.7,2.68764]
[1733317079196,0.24993713,3721.2,3720.7,2.68764]
[1733317079390,0.7749,3721.3,3720.7,2.68764]
[1733317079579,0.24999701,3721.2,3720.7,2.68764]
[1733317079778,0.7749,3721.3,3720.7,2.68764]
[1733317079982,0.24999582,3721.2,3720.7,2.68764]
[1733317080182,0.24999582,3721.1,3720.7,2.68764]
[1733317080516,0.24999582,3721.0,3720.5,0.56293562]
[1733317080676,0.7749,3721.3,3720.9,2.68745]
[1733317080876,0.25002239,3721.2,3721.0,2.68743]
[1733317081119,0.7749,3721.3,3721.0,2.68743]
[1733317081425,0.25014588,3721.2,3721.1,2.68737]
[1733317081779,0.16809215,3721.9,3721.1,2.68737]
[1733317081780,0.39999332,3721.8,3721.1,2.68737]
[1733317082136,0.25024659,3721.7,3721.2,2.6873]
[1733317082304,0.25024659,3721.6,3721.2,2.6873]
[1733317082478,0.25031214,3721.5,3721.3,2.68723]
[1733317082824,0.40050903,3721.8,3721.2,3.2373]
[1733317082996,0.40050903,3721.8,3721.7,2.68694]
[1733317083194,0.25030422,3721.8,3721.7,2.68694]
[1733317084591,0.25030422,3721.8,3721.7,3.51754]
[1733317084792,0.12573584,3722.1,3721.7,1.451066]
[1733317084990,0.25050661,3722.0,3721.4,1.3637691]
[1733317085226,0.25050661,3721.9,3721.7,2.68693]
[1733317085430,0.25050661,3721.8,3721.7,2.68693]
[1733317085793,0.25050661,3721.8,3721.7,2.71379578]
[1733317086022,0.12573584,3722.1,3722.0,2.68672]
[1733317086365,0.37626913,3722.1,3722.0,2.68672]
[1733317086675,0.37626913,3722.1,3722.0,3.44752]
[1733317086874,0.37626913,3722.1,3722.0,4.06365129]
[1733317087018,0.12573584,3722.1,3722.0,7.61365129]
[1733317088234,0.12573584,3722.1,3722.0,8.15542597]
[1733317090939,0.12573584,3722.1,3722.0,3.22849468]
[1733317092783,0.12573584,3722.1,3722.0,4.63005692]
[1733317092984,0.12573584,3722.1,3722.0,7.63005692]
[1733317093295,0.12573584,3722.1,3722.0,7.60319468]
[1733317094887,0.12573584,3722.1,3722.0,0.54177468]
[1733317095414,0.37589959,3722.1,3722.0,0.54177468]
[1733317096075,0.37589959,3722.1,3722.0,3.22849468]
[1733317096277,0.12573584,3722.1,3722.0,3.22849468]
[1733317096475,0.12573584,3722.1,3722.0,3.2553568]
[1733317096909,0.12573584,3722.1,3722.0,6.8053568]
[1733317097115,0.12573584,3722.1,3722.0,6.77849468]
[1733317097324,0.12573584,3722.1,3722.0,8.57855215]
[1733317099137,5.84e-06,3722.1,3722.0,8.57855215]
[1733317105717,0.7509,3723.6,3723.5,2.68564]
[1733317106903,0.8058,3724.1,3723.8,2.68539]
[1733317107446,0.8058,3724.1,3723.5,2.68564]
[1733317107447,0.8058,3724.1,3723.9,2.68534]
[1733317107739,0.8058,3724.1,3723.7,2.68549]
[1733317107925,1.20566427,3724.1,3723.7,2.68549]
[1733317108396,1.20566427,3724.1,3723.3,2.68578]
[1733317108626,0.8058,3724.1,3723.4,2.68566]
[1733317109669,0.8058,3724.1,3723.2,0.55]
[1733317109832,0.8058,3724.1,3723.3,0.75918347]
[1733317110334,0.8058,3724.1,3723.7,2.68543]
[1733317110826,0.8058,3724.1,3723.4,2.68571]
[1733317111028,0.8058,3724.1,3723.6,2.68551]
[1733317111279,0.8058,3724.1,3723.3,0.75918347]
[1733317111432,0.8058,3724.1,3723.4,0.75458582]
[1733317111631,0.8058,3724.1,3723.6,2.68551]
[1733317111841,0.8058,3724.1,3723.5,2.68564]
[1733317112144,0.8058,3724.1,3723.4,0.75458582]
[1733317112348,0.8058,3724.1,3723.8,2.68542]
[1733317112845,0.8058,3724.1,3723.8,2.6854]
[1733317113568,0.65080198,3724.0,3723.8,2.6854]
[1733317114068,0.25030845,3723.9,3723.8,2.6854]
[1733317115168,0.8058,3724.1,3723.4,3.75458582]
[1733317115357,0.8058,3724.1,3724.0,2.68528]
[1733317115557,1.45693648,3724.1,3724.0,2.68528]
[1733317117794,1.45693648,3724.1,3723.8,2.6854]
[1733317118098,0.65113648,3724.0,3723.8,2.6854]
[1733317118399,0.65113648,3723.9,3723.8,2.6854]
[1733317118566,0.25043705,3723.9,3723.8,2.6854]
[1733317118766,0.65113648,3723.9,3723.8,2.6854]
[1733317118966,0.2504871,3723.9,3723.8,2.6854]
[1733317119152,0.65126646,3723.9,3723.8,2.6854]
[1733317119501,0.2504871,3723.9,3723.8,2.6854]
[1733317119654,0.65126646,3723.9,3723.8,2.6854]
[1733317119857,0.2504871,3723.9,3723.8,2.6854]
[1733317121382,0.65126646,3723.9,3723.8,2.6854]
[1733317121595,0.2504871,3723.9,3723.8,2.6854]
[1733317121896,0.65126646,3723.9,3723.8,2.6854]
[1733317122068,0.2504871,3723.9,3723.8,2.6854]
[1733317122257,0.65126646,3723.9,3723.8,2.6854]
[1733317122457,0.2504871,3723.9,3723.8,2.6854]
[1733317122683,0.65126646,3723.9,3723.8,2.6854]
[1733317122858,0.2504871,3723.9,3723.8,2.6854]
[1733317123055,0.65126646,3723.9,3723.8,2.6854]
[1733317124308,0.65126646,3723.9,3723.2,6.23585]
[1733317124511,0.65126646,3723.8,3723.3,2.68578]
[1733317124711,0.65126646,3723.7,3723.2,3.55]
[1733317124926,0.8058,3724.1,3723.6,3.0]
[1733317125148,0.65186907,3724.0,3723.4,3.0]
[1733317125360,0.65186907,3723.9,3723.4,3.0]
[1733317125531,0.65186907,3723.8,3723.4,3.0]
[1733317125732,0.65186907,3723.7,3723.4,3.0]
[1733317125933,0.97376413,3724.1,3723.6,5.68557]
[1733317126128,0.65223395,3724.0,3723.4,3.0]
[1733317126424,0.65223891,3723.9,3723.7,2.68549]
[1733317126730,0.65223891,3723.8,3723.7,2.68549]
[1733317128676,0.82020733,3723.8,3723.7,2.68549]
[1733317128969,0.65223891,3723.8,3723.7,2.68549]
[1733317129330,0.82020733,3723.8,3723.7,2.68549]
[1733317129572,0.65326245,3723.8,3723.4,3.0]
[1733317129740,0.40200766,3723.8,3723.7,2.6855]
[1733317129946,0.65331211,3723.8,3723.5,3.0]
[1733317130156,0.16796501,3723.8,3723.7,2.6855]
[1733317130482,0.82131007,3723.8,3723.7,2.6855]
[1733317133074,0.25128656,3723.8,3723.7,2.6855]
[1733317133280,0.82220744,3723.8,3723.7,2.6855]
[1733317133597,0.82220744,3723.8,3723.7,7.88406827]
[1733317133738,0.17484135,3723.8,3723.7,7.857217]
[1733317133941,0.02516547,3724.2,3723.7,7.857217]
[1733317134272,0.02516547,3724.2,3723.9,2.68533]
[1733317134445,0.02516547,3724.2,3723.2,0.49059547]
[1733317134446,0.756,3724.1,3724.0,5.68528]
[1733317134647,0.02516547,3724.2,3724.0,3.0]
[1733317134868,0.02516547,3724.2,3724.1,2.68521]
[1733317135090,2.56349349,3724.2,3724.0,2.68527]
[1733317135250,2.56349349,3724.2,3723.9,3.0]
[1733317135251,0.02516547,3724.2,3723.9,3.0]
[1733317135573,0.02516547,3724.2,3723.6,0.02685157]
[1733317135870,0.02516547,3724.2,3723.6,0.73157073]
[1733317136374,0.02516547,3724.2,3724.1,2.68521]
[1733317139251,0.02516547,3724.2,3724.1,6.23521]
[1733317144233,0.02516547,3724.2,3724.1,5.68521]
[1733317145619,0.84246547,3724.2,3724.0,3.52918982]
[1733317145912,0.84246547,3724.2,3723.7,2.68545]
[1733317146113,0.25116203,3724.1,3723.4,0.7995]
[1733317146331,0.84246547,3724.2,3723.8,2.68535]
[1733317146497,0.25116793,3724.1,3723.8,2.68535]
[1733317146824,0.84246547,3724.2,3723.6,0.55]
[1733317147032,0.25116803,3724.1,3723.9,2.68535]
[1733317147234,0.25116803,3724.0,3723.9,2.68535]
[1733317147624,0.25116803,3724.0,3723.9,5.68535]
[1733317147936,0.84246547,3724.2,3723.9,5.68535]
[1733317148122,0.25117325,3724.1,3723.9,5.68535]
[1733317148433,0.84246547,3724.2,3723.6,0.55]
[1733317148615,0.25117949,3724.1,3723.9,2.68532]
[1733317148926,0.84246547,3724.2,3723.9,2.68532]
[1733317149128,0.25117963,3724.1,3723.9,2.68532]
[1733317149502,0.84246547,3724.2,3723.9,2.68532]
[1733317149703,0.25118751,3724.1,3723.9,2.68532]
[1733317149970,0.25118751,3724.0,3723.9,2.68532]
[1733317150140,0.84246547,3724.2,3723.9,2.68532]
[1733317150336,0.25119924,3724.1,3723.9,2.68532]
[1733317150520,0.02516547,3724.2,3724.1,2.68521]
[1733317150720,0.2763519,3724.2,3724.1,2.68521]
[1733317153091,0.02516547,3724.2,3724.1,2.68521]
[1733317153294,0.27636979,3724.2,3724.1,2.68521]
[1733317156805,0.27636979,3724.2,3723.9,2.68534]
[1733317157011,0.27636979,3724.2,3724.0,3.0]
[1733317157204,0.25120432,3724.1,3724.0,3.0]
[1733317157404,0.25120432,3724.1,3724.0,5.68528]
[1733317158340,0.02516547,3724.2,3724.1,2.68521]
[1733317158547,0.27649648,3724.2,3724.1,2.68521]
[1733317159563,0.27649648,3724.2,3724.1,5.68521]
[1733317159780,0.02516547,3724.2,3724.1,5.68521]
[1733317160122,0.27652317,3724.2,3724.1,5.68521]
[1733317160441,0.27652317,3724.2,3724.1,6.6842674]
[1733317160631,0.27652317,3724.2,3724.1,5.68521]
[1733317161560,0.02516547,3724.2,3724.1,5.68521]
[1733317165041,0.27664183,3724.2,3724.1,5.68521]
[1733317168737,0.02516547,3724.2,3724.1,5.68521]
[1733317168940,0.27659877,3724.2,3724.1,5.68521]
[1733317169239,0.27659877,3724.2,3724.1,6.60246173]
[1733317170573,0.27658925,3724.2,3724.1,6.60246173]
[1733317171754,0.27658925,3724.2,3723.6,0.67908249]
[1733317171755,2.4167134,3724.2,3723.6,0.67908249]
[1733317171945,0.65374888,3724.1,3723.8,2.68537]
[1733317172150,0.65374888,3724.0,3723.8,2.68537]
[1733317172461,0.65374888,3723.9,3723.8,3.23542]
[1733317172991,0.65374888,3723.9,3723.8,6.23542]
[1733317173952,0.65373553,3723.9,3723.8,6.23542]
[1733317175353,0.752,3723.8,3722.7,0.7568]
[1733317175619,0.65373553,3723.7,3723.3,2.68577]
[1733317175762,0.65373553,3723.6,3723.4,3.0]
[1733317176093,0.25143674,3723.5,3723.4,5.68571]
[1733317176261,0.25143674,3723.5,3723.4,6.30928442]
[1733317176661,0.7697,3723.4,3723.1,0.55003425]
[1733317176856,0.25143674,3723.3,3723.1,0.55003425]
[1733317177090,0.25143674,3723.2,3722.7,2.68616]
[1733317177254,0.2513561,3723.1,3722.7,2.68617]
[1733317177458,0.2513561,3723.0,3722.9,0.54885207]
[1733317177697,0.2513561,3723.0,3722.7,2.68617]
[1733317178002,2.53832802,3723.1,3722.9,0.55]
[1733317178169,0.25138419,3723.0,3722.9,0.55]
[1733317181095,0.25109479,3723.0,3722.9,0.55]
[1733317181307,2.53832802,3723.1,3722.9,0.55]
[1733317181868,2.53832802,3723.1,3722.8,0.55014172]
[1733317182182,2.53832802,3723.1,3722.4,3.8021]
[1733317182183,0.8307,3723.0,3722.5,3.0]
[1733317182383,0.25084712,3722.9,3722.6,0.55]
[1733317182704,0.25084174,3722.8,3722.6,0.55]
[1733317182911,1.2321914,3723.0,3722.6,0.55]
[1733317183109,0.25083207,3722.9,3722.6,0.55]
[1733317183281,0.8307,3723.0,3722.5,3.52702309]
[1733317183607,0.7884,3722.6,3721.9,2.68677]
[1733317183855,0.7884,3722.6,3721.7,0.7988]
[1733317183856,0.25072265,3722.5,3721.7,0.7988]
[1733317184018,0.25072265,3722.4,3722.0,2.6867]
[1733317184174,0.7884,3722.6,3721.7,0.7988]
[1733317184570,0.7884,3722.6,3721.9,0.52772192]
[1733317186819,1.03880341,3722.6,3722.0,0.55]
[1733317186981,0.7884,3722.6,3722.1,3.02686312]
[1733317187309,0.7884,3722.6,3722.2,3.0]
[1733317187937,1.05441708,3722.9,3722.5,0.55]
[1733317188147,1.05442386,3723.1,3722.5,3.23629]
[1733317188433,0.8041,3723.1,3722.7,0.55]
[1733317188992,0.25034231,3723.0,3722.7,0.55]
[1733317189338,0.8041,3723.1,3722.7,0.55]
[1733317189529,0.8041,3723.1,3722.6,3.084959]
[1733317189835,1.05444231,3723.1,3722.7,0.55]
[1733317190041,0.8041,3723.1,3722.5,3.55]
[1733317190343,0.8041,3723.1,3722.7,0.55]
[1733317190527,1.05444231,3723.1,3722.7,0.55]
[1733317190706,0.25034231,3723.0,3722.4,3.0]
[1733317190910,2.78867033,3723.0,3722.4,3.0]
[1733317191107,2.53832802,3723.0,3722.4,3.0]
[1733317191374,2.53832802,3723.0,3722.4,3.649718]
[1733317193620,0.25037477,3722.9,3722.4,0.649718]
[1733317193940,0.25037477,3722.9,3722.4,0.55]
[1733317194435,0.25037477,3722.9,3722.4,3.55]
[1733317194999,2.53832802,3722.6,3722.1,3.0]
[1733317195215,0.773,3722.5,3722.0,3.2367]
[1733317195552,0.773,3722.5,3722.1,3.0]
[1733317196421,0.773,3722.5,3722.0,3.69306219]
[1733317196623,0.773,3722.5,3722.1,2.68664]
[1733317197050,0.40074346,3723.1,3722.0,1.00636219]
[1733317197051,3.35602802,3723.0,3722.0,1.00636219]
[1733317197256,0.25050786,3722.9,3722.2,2.68655]
[1733317197430,0.25050786,3722.8,3722.2,2.68655]
[1733317197744,3.35602802,3723.0,3722.2,2.68655]
[1733317198060,0.25051633,3722.9,3722.2,2.68655]
[1733317198261,1.07761633,3722.8,3722.0,3.23666]
[1733317198419,0.25051633,3722.7,3722.0,3.69301819]
[1733317198818,0.25051633,3722.6,3722.0,3.69301819]
[1733317199067,0.8271,3722.8,3722.0,3.69301819]
[1733317199260,0.25081085,3722.7,3722.1,2.68665]
[1733317199559,0.25081085,3722.6,3722.2,2.68658]
[1733317199722,0.8271,3722.8,3722.2,2.71344273]
[1733317199925,0.25079373,3722.7,3722.2,2.68658]
[1733317200242,0.25079373,3722.6,3722.0,1.00635819]
[1733317200417,0.25079373,3722.5,3722.3,2.6865]
[1733317200621,0.8271,3722.8,3722.1,2.68662]
[1733317200858,0.25088167,3722.7,3722.1,2.68662]
[1733317201067,0.8271,3722.8,3722.0,0.55]
[1733317201068,1.01458167,3722.6,3722.0,0.55]
[1733317201359,0.25088167,3722.5,3722.0,2.6867]
[1733317201569,0.25088167,3722.4,3722.0,2.6867]
[1733317201763,3.30202802,3722.6,3721.9,0.52772192]
[1733317201971,1.01467858,3722.5,3721.8,2.68684]
[1733317202260,0.65256357,3722.4,3721.8,2.68684]
[1733317202417,0.25097858,3722.3,3721.8,2.68684]
[1733317202630,0.25097858,3722.2,3721.8,2.68684]
[1733317202832,0.7637,3722.5,3721.8,2.68684]
[1733317203065,0.65261207,3722.4,3721.8,2.68684]
[1733317203274,0.25100542,3722.3,3721.8,2.68684]
[1733317203484,0.25100542,3722.2,3721.8,0.53960759]
[1733317203649,1.03150542,3722.1,3721.6,3.0]
[1733317203972,2.53832802,3721.8,3721.3,3.2207319]
[1733317204178,0.7805,3721.7,3721.3,2.6872]
[1733317204486,0.7805,3721.7,3721.4,2.68714]
[1733317204634,0.7805,3721.7,3721.6,2.68701]
[1733317204836,0.8295,3722.1,3721.8,2.68686]
[1733317205035,0.8295,3722.4,3721.9,2.68672]
[1733317205268,0.40171822,3722.3,3722.2,2.68658]
[1733317205483,0.40171822,3722.5,3722.4,2.68643]
[1733317205682,0.8295,3722.6,3722.2,2.71344286]
[1733317205842,0.8295,3722.6,3722.5,2.68636]
[1733317206267,1.23125454,3722.6,3722.5,2.68636]
[1733317206578,1.23136952,3722.6,3722.5,2.68636]
[1733317206762,0.40186952,3722.6,3722.5,2.68636]
[1733317206933,0.40186952,3722.8,3722.5,2.68636]
[1733317207136,0.40186952,3722.8,3722.2,0.54131658]
[1733317207137,0.40186952,3722.7,3722.6,2.68629]
[1733317207487,0.8026,3722.9,3722.8,2.68615]
[1733317207686,0.97061618,3723.2,3722.6,0.268629]
[1733317207883,0.97061618,3723.2,3723.0,2.68596]
[1733317208179,0.40209632,3723.1,3723.0,2.68596]
[1733317208953,0.40205706,3723.1,3723.0,2.68596]
[1733317209587,0.40205706,3723.1,3722.7,0.55]
[1733317209894,0.8026,3723.2,3722.9,2.686]
[1733317210043,0.40212075,3723.1,3722.8,2.68611]
[1733317210240,2.53832802,3723.1,3722.8,2.68611]
[1733317210464,0.40213354,3723.0,3722.3,2.68646]
[1733317210677,0.40213026,3722.9,3722.4,3.40310766]
[1733317210843,2.53832802,3723.1,3722.5,2.6863]
[1733317211045,2.53832802,3723.1,3722.2,0.54131658]
[1733317211046,1.16632216,3723.0,3722.3,2.68644]
[1733317211265,0.7642,3722.9,3722.4,2.68643]
[1733317211439,2.53832802,3722.7,3722.2,2.68657]
[1733317211639,0.7999,3722.6,3721.8,3.719686]
[1733317211878,0.7999,3722.6,3722.1,0.54177988]
[1733317212093,0.7999,3722.6,3722.3,2.68648]
[1733317212249,0.7999,3722.6,3722.4,2.68642]
[1733317212438,0.7999,3722.6,3722.1,0.54177988]
[1733317212641,0.7999,3722.6,3722.5,2.68636]
[1733317212943,1.11667098,3723.5,3722.6,2.68629]
[1733317212944,1.21117172,3723.0,3722.6,2.68629]
[1733317213281,0.7555,3723.3,3722.6,2.68629]
[1733317213486,0.40223913,3723.2,3723.0,2.686]
[1733317213647,0.40223913,3723.1,3723.0,2.686]
[1733317214485,0.40219948,3723.1,3723.0,2.686]
[1733317215049,0.7555,3723.3,3722.7,2.68617]
[1733317215258,0.7555,3723.3,3723.2,2.68586]
[1733317215465,1.15764326,3723.3,3723.2,2.68586]
[1733317215957,1.4089876,3723.3,3723.0,2.68594]
[1733317216159,0.6534876,3723.2,3723.0,2.68594]
[1733317216359,0.7555,3723.3,3723.0,2.68594]
[1733317216360,0.65347807,3723.1,3723.0,2.68594]
[1733317216741,0.65347807,3723.1,3722.5,0.27132229]
[1733317216942,0.65347807,3723.0,3722.9,2.68607]
[1733317217186,0.25134434,3723.0,3722.9,2.68607]
[1733317217845,0.65345394,3723.0,3722.4,3.7983]
[1733317218091,0.25134434,3722.9,3722.8,2.68614]
[1733317220147,2.53832802,3723.5,3723.1,2.68593]
[1733317220352,0.65325307,3723.4,3722.9,0.7741]
[1733317220580,0.65324633,3723.3,3723.0,2.686]
[1733317220786,0.25124859,3723.2,3723.1,2.68593]
[1733317221086,0.25124859,3723.2,3723.1,3.300533]
[1733317221290,0.25123482,3723.2,3723.1,0.614603]
[1733317221591,0.25123482,3723.2,3723.1,3.300533]
[1733317222349,0.7697,3723.6,3723.1,0.614603]
[1733317222581,0.25115065,3723.5,3722.9,0.80095512]
[1733317222764,0.7697,3723.6,3723.5,2.68564]
[1733317222950,1.42259163,3723.6,3723.5,2.68564]
[1733317223848,1.02080807,3723.6,3723.5,2.68564]
[1733317224087,1.42259163,3723.6,3723.5,2.68564]
[1733317224308,1.02080807,3723.6,3723.5,2.68564]
[1733317224597,1.42259163,3723.6,3723.5,2.68564]
[1733317224957,1.02080807,3723.6,3723.5,2.68564]
[1733317225155,1.42259163,3723.6,3723.5,2.68564]
[1733317225581,1.02080807,3723.6,3723.5,2.68564]
[1733317226699,1.02080807,3723.6,3723.0,0.52933603]
[1733317226908,0.25110807,3723.5,3723.3,2.68577]
[1733317227210,0.25110807,3723.4,3723.3,2.68578]
[1733317227562,0.25110807,3723.4,3722.6,3.0]
[1733317227785,1.17094954,3723.6,3723.1,2.68589]
[1733317227972,0.7697,3723.6,3723.1,2.68589]
[1733317228172,0.25077058,3723.3,3723.1,2.68589]
[1733317228460,0.25078233,3723.2,3723.1,2.68589]
[1733317228875,0.8317,3723.1,3722.6,0.3]
[1733317229184,0.25076804,3723.0,3722.9,2.68606]
[1733317229565,0.25076804,3723.0,3722.6,0.3]
[1733317229566,0.25076804,3723.0,3722.7,2.68619]
[1733317229767,0.25076804,3723.0,3722.6,0.54692244]
[1733317229768,0.25076804,3722.9,3722.8,2.68612]
[1733317230167,0.25076804,3722.9,3722.6,2.68627]
[1733317230452,0.8317,3723.1,3722.2,0.8124]
[1733317230453,0.8317,3723.1,3722.7,2.68621]
[1733317230656,0.25072186,3723.0,3722.7,2.68621]
[1733317230889,0.25072186,3722.9,3722.5,2.68634]
[1733317231103,0.8317,3723.1,3722.6,2.68628]
[1733317231253,0.65187947,3723.0,3722.6,2.68628]
[1733317231455,0.25072064,3722.9,3722.6,2.68628]
[1733317231711,0.25072064,3722.8,3722.7,3.44702]
[1733317231861,1.90497098,3723.2,3722.7,2.68622]
[1733317231862,1.18944669,3723.2,3722.7,2.68622]
[1733317232057,0.7883,3723.2,3723.1,2.68593]
[1733317232257,0.25075508,3723.2,3723.1,2.68593]
[1733317234278,0.25075508,3723.2,3722.8,2.68608]
[1733317234627,0.65229116,3723.1,3722.9,2.68605]
[1733317234925,1.87977098,3723.5,3723.0,2.686]
[1733317235079,1.58171992,3723.4,3723.0,2.686]
[1733317235283,0.65249317,3723.3,3722.8,2.68613]
[1733317235477,0.65249317,3723.2,3722.8,2.68613]
[1733317235707,0.65249317,3723.1,3722.8,2.68613]
[1733317235911,0.25095891,3723.0,3722.9,2.68607]
[1733317237431,0.65285246,3723.0,3722.9,2.68607]
[1733317238399,0.25095891,3723.0,3722.9,2.68607]
[1733317239531,0.25095891,3723.0,3722.4,0.7881]
[1733317239737,0.16799755,3723.4,3722.8,2.68614]
[1733317239738,0.25095891,3722.9,3722.8,2.68614]
[1733317239923,0.25095891,3722.9,3722.6,2.68627]
[1733317240123,0.25095891,3722.8,3722.7,2.68622]
[1733317240748,0.25095891,3722.8,3722.5,0.40251847]
[1733317240906,0.25095891,3722.7,3722.3,0.55060467]
[1733317241106,0.781,3722.9,3722.0,2.68672]
[1733317241107,0.25095891,3722.6,3722.0,2.68672]
[1733317241310,0.25095891,3722.5,3722.4,2.68641]
[1733317243129,0.25095891,3722.5,3722.2,3.21756766]
[1733317243325,0.25095891,3722.4,3722.2,3.21756766]
[1733317243525,0.40173485,3722.8,3722.2,3.21756766]
[1733317243728,0.65281796,3722.7,3722.2,3.21756766]
[1733317244070,0.25108311,3722.6,3722.4,2.68641]
[1733317244386,0.25108311,3722.5,3722.4,2.68641]
[1733317245791,0.25108311,3722.5,3722.4,3.22371]
[1733317245991,0.40164402,3722.8,3722.7,2.68615]
[1733317246200,0.781,3722.9,3722.8,2.68615]
[1733317246354,1.43366141,3722.9,3722.8,2.68615]
[1733317246786,1.43366141,3722.9,3722.5,2.68629]
[1733317246980,0.65266141,3722.8,3722.2,2.68658]
[1733317247154,0.25102362,3722.7,3722.6,2.68627]
[1733317249406,0.25102362,3722.7,3722.6,2.66110453]
[1733317252211,1.39504443,3723.0,3722.8,2.68615]
[1733317252511,1.11667098,3723.1,3722.5,2.6863]
[1733317252691,0.65281311,3723.0,3722.3,0.7772]
[1733317253008,1.11667098,3723.3,3723.2,2.68586]
[1733317253207,0.6532812,3723.3,3723.2,2.68586]
[1733317254917,0.6532812,3723.3,3723.1,2.68591]
[1733317255065,0.251262,3723.2,3723.1,2.68591]
[1733317255698,0.25131586,3723.2,3722.8,0.8311]
[1733317256005,0.7626,3723.5,3722.8,0.8311]